bitfinex/quotes_BTCUSD_20250904
["timestamp","ask_amount","ask_price","bid_price","bid_amount"]
[1756965507425,0.20965701,110790.0,110780.0,0.75096868]
[1756965507627,0.02913531,110790.0,110780.0,0.75096868]
[1756965507790,0.002,110790.0,110780.0,0.75096868]
[1756965507987,0.002,110790.0,110780.0,0.82036868]
[1756965508272,0.002,110790.0,110780.0,0.8474985]
[1756965508686,0.002,110790.0,110780.0,0.2834198]
[1756965508824,0.001,110790.0,110780.0,0.2834198]
[1756965509026,0.001,110790.0,110780.0,1.0004585]
[1756965509027,0.003,110790.0,110780.0,1.0004585]
[1756965509452,0.003,110790.0,110780.0,1.2819835]
[1756965509615,0.002,110790.0,110780.0,1.1280235]
[1756965509819,0.002,110790.0,110780.0,1.2810235]
[1756965510017,0.003,110790.0,110780.0,1.2820235]
[1756965510213,0.003,110790.0,110780.0,0.4364198]
[1756965510456,0.003,110790.0,110780.0,1.2820235]
[1756965511486,0.003,110790.0,110780.0,1.32299017]
[1756965511686,0.003,110790.0,110780.0,0.47738647]
[1756965511893,0.003,110790.0,110780.0,1.32299017]
[1756965513854,0.003,110790.0,110780.0,0.56930246]
[1756965514027,0.003,110790.0,110780.0,1.41490616]
[1756965514401,0.002,110790.0,110780.0,1.41390616]
[1756965514814,0.001,110790.0,110780.0,1.41490616]
[1756965515264,0.003,110790.0,110780.0,1.41690616]
[1756965516051,0.002,110790.0,110780.0,1.41590616]
[1756965516452,0.003,110790.0,110780.0,1.41890616]
[1756965518924,0.003,110790.0,110780.0,1.26590616]
[1756965519128,0.003,110790.0,110780.0,1.41886616]
[1756965521565,0.003,110790.0,110780.0,1.43980498]
[1756965522220,0.003,110790.0,110780.0,1.86260683]
[1756965522520,0.003,110790.0,110780.0,0.59420128]
[1756965522953,0.003,110790.0,110780.0,1.86260683]
[1756965524684,0.003,110790.0,110780.0,1.70964683]
[1756965525140,0.003,110790.0,110780.0,1.43992498]
[1756965525338,0.003,110790.0,110780.0,1.28684498]
[1756965525794,0.003,110790.0,110780.0,1.43992498]
[1756965525993,0.003,110790.0,110780.0,1.28684498]
[1756965526133,0.003,110790.0,110780.0,1.43992498]
[1756965527009,0.003,110790.0,110780.0,1.43988498]
[1756965527453,0.003,110790.0,110780.0,1.70358498]
[1756965529198,0.003,110790.0,110780.0,1.55054498]
[1756965529410,0.003,110790.0,110780.0,1.70354498]
[1756965531464,0.003,110790.0,110780.0,1.55054498]
[1756965531669,0.003,110790.0,110780.0,1.70346498]
[1756965533932,0.003,110790.0,110780.0,1.70338498]
[1756965534373,0.003,110790.0,110780.0,1.55054498]
[1756965534594,0.003,110790.0,110780.0,1.70338498]
[1756965536297,0.0002609,110790.0,110780.0,1.70338498]
[1756965537207,0.0002609,110790.0,110780.0,1.55054498]
[1756965537408,0.0002609,110790.0,110780.0,1.70330498]
[1756965538253,0.0054209,110790.0,110780.0,1.27525313]
[1756965538887,0.0054209,110790.0,110780.0,1.70001498]
[1756965539228,0.0054209,110790.0,110780.0,1.43631498]
[1756965539614,0.0023109,110790.0,110780.0,1.43631498]
[1756965539821,0.0054209,110790.0,110780.0,0.59071128]
[1756965540038,0.0054209,110790.0,110780.0,1.43435498]
[1756965540310,0.0054209,110790.0,110780.0,0.58875128]
[1756965540530,0.0054209,110790.0,110780.0,1.43435498]
[1756965541048,0.0054209,110790.0,110780.0,0.58875128]
[1756965541246,0.0054209,110790.0,110780.0,1.43435498]
[1756965541639,0.0054209,110790.0,110780.0,1.01155313]
[1756965546204,0.0054209,110790.0,110780.0,1.43631498]
[1756965546420,0.0023109,110790.0,110780.0,1.43631498]
[1756965548039,0.0023109,110790.0,110780.0,1.01351313]
[1756965548443,0.0002609,110790.0,110780.0,1.01351313]
[1756965548602,0.0002609,110790.0,110780.0,1.01656313]
[1756965549073,0.0002609,110790.0,110780.0,0.59376128]
[1756965549279,0.0002609,110790.0,110780.0,1.01656313]
[1756965549665,2.349e-05,110790.0,110780.0,1.01656313]
[1756965550893,2.349e-05,110790.0,110780.0,0.59376128]
[1756965551100,2.349e-05,110790.0,110780.0,1.01656313]
[1756965551826,2.349e-05,110790.0,110780.0,0.59376128]
[1756965551973,2.349e-05,110790.0,110780.0,1.01656313]
[1756965552583,2.349e-05,110790.0,110780.0,0.59376128]
[1756965553026,2.349e-05,110790.0,110780.0,1.43936498]
[1756965553254,2.349e-05,110790.0,110780.0,0.59376128]
[1756965553404,2.349e-05,110790.0,110780.0,1.43936498]
[1756965553842,2.349e-05,110790.0,110780.0,0.59376128]
[1756965554047,2.349e-05,110790.0,110780.0,1.43936498]
[1756965554200,0.68892568,110820.0,110790.0,0.00902608]
[1756965554554,0.00308,110810.0,110800.0,0.42742343]
[1756965554760,0.00513,110810.0,110800.0,0.42516712]
[1756965554961,0.00513,110810.0,110800.0,0.42722712]
[1756965555199,0.00308,110820.0,110810.0,0.18048912]
[1756965555408,0.00513,110820.0,110810.0,0.27240511]
[1756965555612,0.00713,110820.0,110810.0,0.27240511]
[1756965555820,0.00613,110820.0,110810.0,0.76456696]
[1756965556066,0.00305,110820.0,110810.0,0.39259993]
[1756965556275,0.00205,110820.0,110810.0,0.81540178]
[1756965556649,0.00205,110820.0,110810.0,0.39259993]
[1756965556856,0.00513,110820.0,110810.0,0.80635871]
[1756965556999,0.00513,110820.0,110810.0,0.54566405]
[1756965557220,0.00613,110820.0,110810.0,0.54766405]
[1756965557418,0.00613,110820.0,110810.0,0.38555686]
[1756965557675,0.00613,110820.0,110810.0,0.53847686]
[1756965557870,0.00613,110820.0,110810.0,0.53041686]
[1756965558288,0.00513,110820.0,110810.0,0.52841686]
[1756965558424,0.00513,110820.0,110810.0,0.52941686]
[1756965558626,0.01013,110820.0,110810.0,0.52941686]
[1756965558874,0.01013,110820.0,110810.0,0.53041686]
[1756965559266,0.01013,110820.0,110810.0,0.53247686]
[1756965560294,0.01013,110820.0,110810.0,0.95523871]
[1756965561285,0.01013,110820.0,110810.0,0.95519871]
[1756965561482,0.01013,110820.0,110810.0,0.80235871]
[1756965561684,0.01013,110820.0,110810.0,0.53239686]
[1756965562237,0.00705,110820.0,110810.0,0.53239686]
[1756965562464,0.005,110820.0,110810.0,0.53239686]
[1756965562603,0.005,110820.0,110810.0,0.53546686]
[1756965563015,0.005,110820.0,110810.0,0.95826871]
[1756965564346,0.005,110820.0,110810.0,0.95519871]
[1756965564556,0.005,110820.0,110810.0,0.95826871]
[1756965565393,0.005,110820.0,110810.0,0.95519871]
[1756965565643,0.005,110820.0,110810.0,0.95826871]
[1756965566822,0.005,110820.0,110810.0,0.95519871]
[1756965567174,0.00705,110820.0,110810.0,0.53239686]
[1756965568055,0.00705,110820.0,110810.0,0.95519871]
[1756965569401,0.00705,110820.0,110810.0,0.53239686]
[1756965569599,0.01013,110820.0,110810.0,0.53239686]
[1756965569891,0.01013,110820.0,110810.0,0.37955686]
[1756965570093,0.01013,110820.0,110810.0,0.53223686]
[1756965570477,0.00705,110820.0,110810.0,0.53223686]
[1756965577564,0.005,110820.0,110810.0,0.53530686]
[1756965577915,0.005,110820.0,110810.0,0.53223686]
[1756965578908,0.005,110820.0,110810.0,0.37955686]
[1756965579116,0.005,110820.0,110810.0,0.53235686]
[1756965579308,0.005,110820.0,110810.0,0.53231686]
[1756965579506,0.00716,110820.0,110810.0,0.53231686]
[1756965580566,0.00716,110820.0,110810.0,0.53227686]
[1756965581835,0.005,110820.0,110810.0,0.53227686]
[1756965582576,0.00716,110820.0,110810.0,0.53227686]
[1756965582928,0.005,110820.0,110810.0,0.53521686]
[1756965583127,0.005,110820.0,110810.0,0.53227686]
[1756965583501,0.00716,110820.0,110810.0,0.53227686]
[1756965587186,0.005,110820.0,110810.0,0.53521686]
[1756965587394,0.005,110820.0,110810.0,0.53227686]
[1756965587604,0.00716,110820.0,110810.0,0.53227686]
[1756965589410,0.005,110820.0,110810.0,0.53227686]
[1756965590178,0.00716,110820.0,110810.0,0.53227686]
[1756965590595,0.005,110820.0,110810.0,0.53227686]
[1756965590987,0.005,110820.0,110810.0,0.37955686]
[1756965591247,0.005,110820.0,110810.0,0.53207686]
[1756965593006,0.00716,110820.0,110810.0,0.53207686]
[1756965594164,0.00716,110820.0,110810.0,0.55919836]
[1756965594718,0.005,110820.0,110810.0,0.55919836]
[1756965595143,0.005,110820.0,110810.0,0.56213836]
[1756965595728,0.005,110820.0,110810.0,0.55919836]
[1756965597026,0.005,110820.0,110810.0,0.56213836]
[1756965597406,0.005,110820.0,110810.0,0.64338302]
[1756965600250,0.00716,110820.0,110810.0,0.48792302]
[1756965600461,0.00716,110820.0,110810.0,0.64017302]
[1756965600664,0.005,110820.0,110810.0,0.64311302]
[1756965601321,0.005,110820.0,110810.0,1.22755877]
[1756965601533,0.00033601,110820.0,110810.0,1.22755877]
[1756965601942,0.0001013,110820.0,110810.0,1.22755877]
[1756965602173,0.0001013,110820.0,110810.0,1.56755877]
[1756965602613,0.0001013,110820.0,110810.0,1.48631411]
[1756965603504,0.0001013,110820.0,110810.0,1.56754884]
[1756965603964,0.0001013,110820.0,110810.0,1.56750884]
[1756965605035,0.0001013,110820.0,110810.0,1.41518884]
[1756965605246,0.0001013,110820.0,110810.0,1.56750884]
[1756965606567,0.0001013,110820.0,110810.0,1.41518884]
[1756965606978,0.0022613,110820.0,110810.0,0.50874191]
[1756965607107,0.56889823,110820.0,110810.0,0.49185309]
[1756965607314,0.74937106,110820.0,110810.0,0.56289836]
[1756965607528,1.20383705,110820.0,110810.0,0.09391599]
[1756965607752,1.20383705,110820.0,110810.0,0.002]
[1756965607979,1.23096182,110820.0,110810.0,0.002]
[1756965608400,1.13904583,110820.0,110810.0,0.002]
[1756965610998,1.29132583,110820.0,110810.0,0.002]
[1756965611445,1.30034118,110820.0,110810.0,0.002]
[1756965611827,0.58455425,110820.0,110810.0,0.002]
[1756965612033,0.73679425,110820.0,110810.0,0.002]
[1756965612443,1.30034118,110820.0,110810.0,0.002]
[1756965613907,1.39225717,110820.0,110810.0,0.002]
[1756965614111,0.82875024,110820.0,110810.0,0.002]
[1756965614311,1.39225717,110820.0,110810.0,0.002]
[1756965615899,1.39225717,110820.0,110810.0,0.001]
[1756965616072,0.18050541,110800.0,110790.0,0.2216]
[1756965616379,0.74902234,110800.0,110790.0,0.24618599]
[1756965616586,0.00205,110800.0,110790.0,0.42670769]
[1756965616786,0.89921016,110810.0,110790.0,0.42983769]
[1756965616990,0.89921016,110810.0,110800.0,0.09191599]
[1756965617198,0.92838737,110810.0,110800.0,0.09191599]
[1756965618219,0.77614737,110810.0,110800.0,0.09191599]
[1756965618657,0.77113737,110810.0,110800.0,0.09394599]
[1756965619076,0.77614737,110810.0,110800.0,0.09394599]
[1756965619286,0.77714737,110810.0,110800.0,0.09994599]
[1756965622973,0.77714737,110810.0,110800.0,0.09791599]
[1756965623227,0.77714737,110810.0,110800.0,0.25003599]
[1756965624750,0.20863044,110810.0,110800.0,0.25206599]
[1756965625114,0.77714737,110810.0,110800.0,0.25003599]
[1756965626669,0.77714737,110810.0,110800.0,0.09791599]
[1756965626868,0.77714737,110810.0,110800.0,0.24999599]
[1756965627954,0.21364044,110810.0,110800.0,0.25202599]
[1756965628345,0.77714737,110810.0,110800.0,0.25202599]
[1756965628576,0.77714737,110810.0,110800.0,0.24999599]
[1756965629375,0.77714737,110810.0,110800.0,0.25202599]
[1756965629548,0.21364044,110810.0,110800.0,0.4325314]
[1756965629770,0.77714737,110810.0,110800.0,0.4325314]
[1756965630524,0.77714737,110810.0,110800.0,0.25202599]
[1756965630726,0.77418737,110810.0,110800.0,0.25202599]
[1756965631312,0.77714737,110810.0,110800.0,0.25202599]
[1756965631574,0.21364044,110810.0,110800.0,0.25202599]
[1756965631776,0.63645409,110810.0,110800.0,0.25202599]
[1756965633418,0.63645409,110810.0,110800.0,0.24999599]
[1756965635465,0.63645409,110810.0,110800.0,0.25202599]
[1756965637236,0.63645409,110810.0,110800.0,0.24991599]
[1756965637806,0.21364044,110810.0,110800.0,0.24991599]
[1756965638004,0.63645409,110810.0,110800.0,0.24991599]
[1756965638460,0.21364044,110810.0,110800.0,0.25194599]
[1756965638653,0.63645409,110810.0,110800.0,0.25194599]
[1756965640786,0.21068044,110810.0,110800.0,0.4324514]
[1756965641007,0.21364044,110810.0,110800.0,0.4324514]
[1756965641187,0.63645409,110810.0,110800.0,0.4324514]
[1756965643634,0.63645409,110810.0,110800.0,0.4323814]
[1756965644016,0.63645409,110810.0,110800.0,0.4304214]
[1756965644188,0.21364044,110810.0,110800.0,0.4304214]
[1756965644384,0.63645409,110810.0,110800.0,0.4304214]
[1756965644845,0.21364044,110810.0,110800.0,0.4304214]
[1756965645001,0.63645409,110810.0,110800.0,0.4304214]
[1756965645979,0.63645409,110810.0,110800.0,0.4323814]
[1756965646576,0.45299086,110810.0,110800.0,0.4323814]
[1756965646788,0.001,110810.0,110800.0,1.30192752]
[1756965646990,0.001,110810.0,110800.0,1.32905079]
[1756965647191,0.79446152,110830.0,110810.0,0.18047408]
[1756965647361,0.79446152,110830.0,110820.0,0.00225591]
[1756965647563,0.79648152,110830.0,110820.0,0.18272874]
[1756965647762,0.79648152,110830.0,110820.0,0.18047283]
[1756965648298,0.79748152,110830.0,110810.0,0.27837007]
[1756965648436,0.79748152,110830.0,110820.0,0.00225591]
[1756965648653,0.79948152,110830.0,110820.0,0.00225591]
[1756965648862,0.80048152,110830.0,110820.0,0.00525591]
[1756965649421,0.79848152,110830.0,110820.0,0.00525591]
[1756965649790,0.80048152,110830.0,110820.0,0.00525591]
[1756965649990,0.79948152,110830.0,110820.0,0.00525591]
[1756965650191,0.79848152,110830.0,110820.0,0.00225591]
[1756965650399,0.79948152,110830.0,110820.0,0.00225591]
[1756965651111,0.79848152,110830.0,110820.0,0.00225591]
[1756965651317,0.79848152,110830.0,110820.0,0.00625591]
[1756965651515,0.79948152,110830.0,110820.0,0.00625591]
[1756965653539,0.77235825,110830.0,110820.0,0.00625591]
[1756965655724,0.77235825,110830.0,110820.0,0.004]
[1756965656799,0.79646825,110830.0,110820.0,0.004]
[1756965657612,0.3736546,110830.0,110820.0,0.004]
[1756965657790,0.79646825,110830.0,110820.0,0.004]
[1756965659088,0.18047283,110820.0,110810.0,0.44461142]
[1756965659502,0.42483365,110820.0,110810.0,0.44657142]
[1756965659861,0.60530648,110820.0,110810.0,0.44657142]
[1756965660462,0.60826648,110820.0,110810.0,0.44657142]
[1756965660580,0.42381365,110820.0,110810.0,0.45157142]
[1756965660812,0.42381365,110820.0,110810.0,0.45455142]
[1756965661037,0.42481365,110820.0,110810.0,0.45157142]
[1756965661436,0.42381365,110820.0,110810.0,0.44657142]
[1756965661862,0.60730648,110820.0,110810.0,0.29949142]
[1756965662032,0.61026648,110820.0,110810.0,0.45185142]
[1756965662570,0.60926648,110820.0,110810.0,0.29949142]
[1756965662781,0.60926648,110820.0,110810.0,0.45181142]
[1756965663212,0.60926648,110820.0,110810.0,0.29449142]
[1756965663428,0.60826648,110820.0,110810.0,0.44681142]
[1756965663644,0.60926648,110820.0,110810.0,0.44981142]
[1756965663846,0.18645283,110820.0,110810.0,0.44981142]
[1756965664061,0.60926648,110820.0,110810.0,0.44981142]
[1756965664270,0.61026648,110820.0,110810.0,0.45481142]
[1756965664476,1.12499612,110820.0,110810.0,0.20123685]
[1756965664677,1.12499612,110820.0,110810.0,0.04887685]
[1756965665154,1.27731612,110820.0,110810.0,0.05113296]
[1756965666183,1.18540013,110820.0,110810.0,0.05113296]
[1756965667571,1.18540013,110820.0,110810.0,0.04887685]
[1756965668271,0.33977283,110820.0,110810.0,0.05113296]
[1756965668497,1.18540013,110820.0,110810.0,0.05113296]
[1756965669043,1.18540013,110820.0,110810.0,0.04887685]
[1756965669248,0.43168882,110820.0,110810.0,0.04887685]
[1756965669480,0.85450247,110820.0,110810.0,0.01030342]
[1756965670509,1.27731612,110820.0,110810.0,0.01030342]
[1756965670858,1.27731612,110820.0,110810.0,0.00804731]
[1756965672077,1.27731612,110820.0,110810.0,0.01030342]
[1756965672801,1.27731612,110820.0,110810.0,0.00804731]
[1756965673992,1.27731612,110820.0,110810.0,0.01030342]
[1756965674409,1.27731612,110820.0,110810.0,0.05012869]
[1756965674740,1.27731612,110820.0,110810.0,0.04787258]
[1756965674927,0.85450247,110820.0,110810.0,0.19079254]
[1756965675129,0.85450247,110820.0,110810.0,0.18853643]
[1756965676877,0.85450247,110820.0,110810.0,0.00804731]
[1756965676878,1.27731612,110820.0,110810.0,0.00804731]
[1756965677314,1.30076612,110820.0,110810.0,0.00804731]
[1756965682508,1.30064612,110820.0,110810.0,0.00804731]
[1756965687063,1.30056612,110820.0,110810.0,0.00804731]
[1756965688553,1.27707612,110820.0,110810.0,0.01008731]
[1756965691562,0.99516677,110820.0,110810.0,0.01008731]
[1756965693727,0.99516677,110820.0,110810.0,0.00804731]
[1756965696412,0.43144882,110820.0,110810.0,0.00804731]
[1756965696621,0.99516677,110820.0,110810.0,0.00804731]
[1756965699322,0.84308677,110820.0,110810.0,0.00804731]
[1756965699523,0.99504677,110820.0,110810.0,0.00804731]
[1756965699764,0.18449283,110820.0,110810.0,0.00999731]
[1756965700091,0.18247283,110820.0,110810.0,0.19582254]
[1756965700407,0.18247283,110820.0,110810.0,0.19356643]
[1756965702071,0.18247283,110820.0,110810.0,0.01307731]
[1756965702281,0.18247283,110820.0,110810.0,0.01533342]
[1756965702489,0.18247283,110820.0,110810.0,0.19582254]
[1756965702669,0.18247283,110820.0,110810.0,0.19356643]
[1756965703528,0.18247283,110820.0,110810.0,0.01307731]
[1756965703715,0.18247283,110820.0,110810.0,0.01533342]
[1756965704566,0.18247283,110820.0,110810.0,0.01225342]
[1756965704811,0.75139078,110820.0,110810.0,0.01225342]
[1756965705466,0.84330677,110820.0,110810.0,0.01225342]
[1756965705670,0.84330677,110820.0,110810.0,0.01030342]
[1756965706634,0.27958882,110820.0,110810.0,0.01030342]
[1756965706802,0.84330677,110820.0,110810.0,0.01030342]
[1756965707712,0.27958882,110820.0,110810.0,0.01030342]
[1756965707916,0.84330677,110820.0,110810.0,0.01030342]
[1756965709266,0.84330677,110820.0,110810.0,0.01225342]
[1756965709921,0.84330677,110820.0,110810.0,0.01030342]
[1756965711867,0.84330677,110820.0,110810.0,0.01225342]
[1756965712253,0.75139078,110820.0,110810.0,0.01225342]
[1756965713872,0.77851615,110820.0,110810.0,0.01225342]
[1756965716789,0.2147982,110820.0,110810.0,0.19274254]
[1756965717002,0.77851615,110820.0,110810.0,0.00999731]
[1756965717195,0.77851615,110820.0,110810.0,0.01225342]
[1756965718354,0.93027615,110820.0,110810.0,0.01225342]
[1756965720085,0.3665582,110820.0,110810.0,0.01225342]
[1756965720308,0.93027615,110820.0,110810.0,0.01030342]
[1756965721274,0.92716615,110820.0,110810.0,0.01225342]
[1756965721634,0.77851615,110820.0,110810.0,0.19274254]
[1756965721830,0.77851615,110820.0,110810.0,0.00804731]
[1756965721831,0.8315165,110820.0,110810.0,0.00804731]
[1756965722036,0.8315165,110820.0,110810.0,0.01030342]
[1756965722243,0.9832765,110820.0,110810.0,0.00804731]
[1756965727052,0.9832765,110820.0,110810.0,0.01030342]
[1756965729607,0.9832765,110820.0,110810.0,0.00804731]
[1756965730126,1.3232765,110820.0,110810.0,0.00804731]
[1756965730390,1.95877277,110820.0,110810.0,0.00804731]
[1756965730596,0.74422336,110800.0,110790.0,0.02712538]
[1756965730802,0.98805935,110800.0,110790.0,4.72e-05]
[1756965731001,0.99017935,110800.0,110790.0,4.72e-05]
[1756965731181,1.04518027,110800.0,110790.0,4.72e-05]
[1756965731387,1.60889822,110800.0,110790.0,4.72e-05]
[1756965731800,1.60989822,110800.0,110790.0,0.0060472]
[1756965732212,1.94989822,110800.0,110790.0,0.0080472]
[1756965732630,1.94989822,110800.0,110790.0,0.0060472]
[1756965734518,1.94889822,110800.0,110790.0,4.72e-05]
[1756965734930,1.95089822,110800.0,110790.0,0.0010472]
[1756965735368,1.95189822,110800.0,110790.0,0.0010472]
[1756965735587,2.04181421,110800.0,110790.0,4.72e-05]
[1756965736006,2.04481421,110800.0,110790.0,0.0010472]
[1756965737394,1.9153629,110800.0,110790.0,0.0010472]
[1756965737635,2.0672029,110800.0,110790.0,0.0010472]
[1756965742674,2.0671629,110800.0,110790.0,0.0010472]
[1756965749696,2.0661629,110800.0,110790.0,0.0010472]
[1756965750107,2.0691629,110800.0,110790.0,0.0020472]
[1756965750739,2.0691629,110800.0,110790.0,0.0010472]
[1756965750942,2.0661629,110800.0,110790.0,0.0010472]
[1756965751161,2.0701629,110800.0,110790.0,0.0020472]
[1756965751590,2.21207275,110800.0,110790.0,0.0020472]
[1756965753052,2.06027275,110800.0,110790.0,0.0020472]
[1756965753255,2.18960406,110800.0,110790.0,0.0020472]
[1756965756128,1.76648881,110800.0,110790.0,0.0020472]
[1756965758229,1.61468881,110800.0,110790.0,0.0020472]
[1756965758438,1.76648881,110800.0,110790.0,0.0020472]
[1756965761130,1.61468881,110800.0,110790.0,0.0020472]
[1756965761330,1.76652881,110800.0,110790.0,0.0020472]
[1756965764134,1.76123144,110800.0,110790.0,0.0020472]
[1756965768729,0.1805543,110770.0,110760.0,1.19326354]
[1756965769014,0.3323543,110770.0,110760.0,1.28738151]
[1756965769230,0.1805543,110770.0,110760.0,1.28738151]
[1756965769452,0.20769072,110770.0,110760.0,1.28738151]
[1756965769861,0.20769072,110770.0,110760.0,1.28838151]
[1756965770784,0.20869072,110770.0,110760.0,1.29038151]
[1756965770994,0.20869072,110770.0,110760.0,1.29228151]
[1756965779631,0.02813642,110770.0,110760.0,2.13851201]
[1756965779831,0.001,110770.0,110760.0,2.13851201]
[1756965780435,0.001,110770.0,110760.0,2.29031201]
[1756965781503,0.001,110770.0,110760.0,2.13851201]
[1756965781709,0.001,110770.0,110760.0,2.29031201]
[1756965782117,0.001,110770.0,110760.0,2.13851201]
[1756965782480,0.001,110770.0,110760.0,2.29031201]
[1756965784870,0.001,110770.0,110760.0,2.13851201]
[1756965785079,0.001,110770.0,110760.0,2.29031201]
[1756965786485,0.001,110770.0,110760.0,2.13851201]
[1756965786688,0.001,110770.0,110760.0,2.29031201]
[1756965786893,0.19034636,110780.0,110760.0,1.44408151]
[1756965787100,0.19343636,110780.0,110770.0,0.51503124]
[1756965787304,0.19343636,110780.0,110770.0,0.09191599]
[1756965787499,0.19555636,110780.0,110770.0,0.09397599]
[1756965788166,0.19655636,110780.0,110770.0,0.09191599]
[1756965788302,0.19755636,110780.0,110770.0,0.09291599]
[1756965788704,0.19655636,110780.0,110770.0,0.09291599]
[1756965788906,0.34935636,110780.0,110770.0,0.09291599]
[1756965789209,0.34935636,110780.0,110770.0,0.51603124]
[1756965790027,0.34935636,110780.0,110770.0,0.09291599]
[1756965790429,0.77247161,110780.0,110770.0,0.001]
[1756965792267,0.34935636,110780.0,110770.0,0.001]
[1756965792486,0.77247161,110780.0,110770.0,0.001]
[1756965796820,0.19755636,110780.0,110770.0,0.001]
[1756965797027,0.77247161,110780.0,110770.0,0.001]
[1756965797454,0.34935636,110780.0,110770.0,0.001]
[1756965797867,0.77247161,110780.0,110770.0,0.001]
[1756965798253,0.19755636,110780.0,110770.0,0.001]
[1756965798471,0.8190471,110780.0,110770.0,0.001]
[1756965798676,0.77247161,110780.0,110770.0,0.001]
[1756965799633,1.53558686,110780.0,110770.0,0.001]
[1756965801203,1.11247161,110780.0,110770.0,0.001]
[1756965801829,1.53558686,110780.0,110770.0,0.001]
[1756965802060,1.11247161,110780.0,110770.0,0.001]
[1756965802929,1.15353796,110780.0,110770.0,0.001]
[1756965804028,1.11247161,110780.0,110770.0,0.001]
[1756965807462,1.53558686,110780.0,110770.0,0.001]
[1756965808239,1.38378686,110780.0,110770.0,0.001]
[1756965808442,1.11247161,110780.0,110770.0,0.001]
[1756965811303,0.96067161,110780.0,110770.0,0.001]
[1756965811507,0.68935636,110780.0,110770.0,0.001]
[1756965811631,1.25347427,110780.0,110770.0,0.001]
[1756965813041,1.10167427,110780.0,110770.0,0.001]
[1756965813512,1.25347427,110780.0,110770.0,0.001]
[1756965814008,0.68935636,110780.0,110770.0,0.001]
[1756965815320,1.34539026,110780.0,110770.0,0.001]
[1756965815892,1.25347427,110780.0,110770.0,0.001]
[1756965826783,1.25343427,110780.0,110770.0,0.001]
[1756965828187,0.68931636,110780.0,110770.0,0.001]
[1756965828381,1.25343427,110780.0,110770.0,0.001]
[1756965829835,0.53755636,110780.0,110770.0,0.001]
[1756965830061,0.68931636,110780.0,110770.0,0.001]
[1756965830828,0.78123235,110780.0,110770.0,0.001]
[1756965831631,1.34535026,110780.0,110770.0,0.001]
[1756965832397,1.25343427,110780.0,110770.0,0.001]
[1756965834010,0.68931636,110780.0,110770.0,0.001]
[1756965834169,1.25343427,110780.0,110770.0,0.001]
[1756965834383,0.68410636,110780.0,110770.0,0.66126082]
[1756965834616,0.68410636,110780.0,110770.0,0.09488599]
[1756965834770,0.68410636,110780.0,110770.0,0.09714291]
[1756965836492,0.68410636,110780.0,110770.0,0.09488599]
[1756965836825,0.78120235,110780.0,110770.0,0.09291599]
[1756965837442,1.34532026,110780.0,110770.0,0.001]
[1756965837839,0.78120235,110780.0,110770.0,0.001]
[1756965838237,0.68928636,110780.0,110770.0,0.001]
[1756965838439,0.53752636,110780.0,110770.0,0.001]
[1756965838640,0.53752636,110780.0,110770.0,0.00297]
[1756965838845,0.68928636,110780.0,110770.0,0.00297]
[1756965839200,0.68928636,110780.0,110770.0,0.001]
[1756965839472,0.53752636,110780.0,110770.0,0.001]
[1756965839651,0.68928636,110780.0,110770.0,0.001]
[1756965843969,0.756802,110780.0,110770.0,0.001]
[1756965844552,1.32091991,110780.0,110770.0,0.001]
[1756965847965,1.34504991,110780.0,110770.0,0.001]
[1756965850443,1.2852059,110780.0,110770.0,0.001]
[1756965850643,1.4369659,110780.0,110770.0,0.001]
[1756965858142,1.48582166,110780.0,110770.0,0.001]
[1756965858309,1.48582166,110780.0,110760.0,1.00380689]
[1756965858310,0.79352797,110770.0,110760.0,1.00380689]
[1756965858504,1.15758995,110770.0,110760.0,1.00380689]
[1756965858928,1.18473287,110770.0,110760.0,1.00380689]
[1756965859358,1.18873287,110770.0,110760.0,1.00480689]
[1756965859976,1.1623458,110770.0,110760.0,1.00480689]
[1756965861044,1.1623458,110770.0,110760.0,1.00580689]
[1756965861222,1.1653458,110770.0,110760.0,1.00580689]
[1756965862230,1.14287711,110770.0,110760.0,1.00580689]
[1756965862458,0.99111711,110770.0,110760.0,1.00580689]
[1756965862678,0.5555792,110770.0,110760.0,1.00580689]
[1756965863023,0.96793711,110770.0,110760.0,1.00580689]
[1756965863143,1.11969711,110770.0,110760.0,1.00580689]
[1756965865906,0.96793711,110770.0,110760.0,1.00580689]
[1756965866113,1.11969711,110770.0,110760.0,1.00580689]
[1756965866342,0.96793711,110770.0,110760.0,1.00580689]
[1756965866532,1.11969711,110770.0,110760.0,1.00580689]
[1756965868335,0.5555792,110770.0,110760.0,1.00580689]
[1756965868531,1.11969711,110770.0,110760.0,1.00580689]
[1756965869982,0.96793711,110770.0,110760.0,1.00580689]
[1756965870194,1.11969711,110770.0,110760.0,1.00580689]
[1756965870396,0.30661321,110770.0,110760.0,1.00783689]
[1756965870597,1.02249112,110770.0,110760.0,1.00783689]
[1756965871060,1.02571112,110770.0,110760.0,1.00783689]
[1756965871291,1.02778112,110770.0,110760.0,1.00783689]
[1756965872946,1.09722112,110770.0,110760.0,1.00783689]
[1756965873654,0.95104207,110770.0,110760.0,1.00783689]
[1756965874766,0.95426207,110770.0,110760.0,1.00783689]
[1756965875506,0.95633207,110770.0,110760.0,1.00783689]
[1756965876660,0.95426207,110770.0,110760.0,1.00783689]
[1756965876987,0.95633207,110770.0,110760.0,1.00783689]
[1756965877196,0.95426207,110770.0,110760.0,1.00783689]
[1756965879632,0.80250207,110770.0,110760.0,1.00783689]
[1756965879883,0.95426207,110770.0,110760.0,1.00783689]
[1756965880964,0.95627207,110770.0,110760.0,1.00783689]
[1756965881979,0.53304321,110770.0,110760.0,1.00783689]
[1756965882181,0.95627207,110770.0,110760.0,1.00783689]
[1756965883692,0.95623207,110770.0,110760.0,1.00783689]
[1756965884199,0.80451207,110770.0,110760.0,1.00783689]
[1756965884396,0.85908608,110770.0,110760.0,1.00783689]
[1756965884594,1.19908608,110770.0,110760.0,1.00783689]
[1756965885030,1.20204608,110770.0,110760.0,1.00783689]
[1756965885150,1.05032608,110770.0,110760.0,1.00783689]
[1756965885350,1.14224207,110770.0,110760.0,1.00783689]
[1756965885553,0.28413722,110770.0,110760.0,1.00783689]
[1756965885800,0.36641722,110770.0,110760.0,1.00973689]
[1756965886103,0.21469722,110770.0,110760.0,1.00973689]
[1756965886324,0.36641722,110770.0,110760.0,1.00973689]
[1756965886508,0.36341722,110770.0,110760.0,1.00873689]
[1756965886723,0.40835191,110770.0,110760.0,1.00873689]
[1756965886854,0.41035191,110770.0,110760.0,1.00873689]
[1756965887437,0.83158077,110770.0,110760.0,1.00873689]
[1756965887861,0.83258077,110770.0,110760.0,1.00873689]
[1756965888272,0.82858077,110770.0,110760.0,1.00773689]